bitfinex/quotes_SOLUSD_20250204
["timestamp","ask_amount","ask_price","bid_price","bid_amount"]
[1738661490717,42.88173297,205.07,204.95,17.0772]
[1738661491031,47.75833297,205.07,204.95,17.0772]
[1738661491238,22.85173297,205.04,204.96,0.25098]
[1738661491939,22.85173297,205.04,204.96,0.12549]
[1738661492118,22.85173297,205.02,204.9,4.8804]
[1738661492436,22.85173297,205.02,204.91,0.25098]
[1738661493038,27.72943297,205.02,204.92,0.12549]
[1738661493919,45.63274853,205.07,204.95,50.25098]
[1738661493920,0.03,205.07,204.95,50.25098]
[1738661494446,22.85173297,205.03,204.91,17.0805]
[1738661494647,22.85173297,205.01,204.91,17.0805]
[1738661495018,22.85173297,205.01,204.92,0.25098]
[1738661496330,22.85173297,205.01,204.9,4.8804]
[1738661496331,22.85173297,204.99,204.9,4.8804]
[1738661496531,22.85173297,204.97,204.89,6.4351]
[1738661496729,22.85173297,204.98,204.89,6.4351]
[1738661496923,22.85173297,204.98,204.9,0.25098]
[1738661497119,27.72983297,205.0,204.92,0.12549]
[1738661497320,22.85173297,205.02,204.92,0.25098]
[1738661498437,22.85173297,205.01,204.93,0.12549]
[1738661498827,22.85173297,204.97,204.89,1.5546]
[1738661499056,22.85173297,204.97,204.87,4.8811]
[1738661499230,22.85173297,204.97,204.88,0.25098]
[1738661500149,22.85173297,204.97,204.88,0.12549]
[1738661500339,22.85173297,204.97,204.9,0.12549]
[1738661500545,22.85173297,204.96,204.9,0.12549]
[1738661501059,22.85173297,204.92,204.9,0.063]
[1738661501260,22.85173297,204.91,204.9,0.063]
[1738661501773,22.85173297,204.92,204.9,0.063]
[1738661502264,22.85173297,204.91,204.9,0.063]
[1738661502550,27.73183297,204.91,204.9,0.063]
[1738661502747,41.1436815,204.91,204.9,0.063]
[1738661504256,20.0,204.88,204.8,0.03]
[1738661504431,22.85173297,204.84,204.8,0.03]
[1738661504938,22.85173297,204.81,204.8,0.03]
[1738661505558,36.2635815,204.81,204.8,0.03]
[1738661506243,22.85173297,204.81,204.8,0.03]
[1738661506635,36.2635815,204.81,204.8,0.03]
[1738661507465,59.11531447,204.81,204.8,0.03]
[1738661507632,18.29464853,204.8,204.78,0.03]
[1738661507835,20.0,204.76,204.74,0.03]
[1738661508055,42.2682815,204.75,204.74,0.03]
[1738661508258,13.41184853,204.71,204.63,0.063]
[1738661508569,59.11531447,204.71,204.63,0.063]
[1738661508867,36.2635815,204.71,204.63,0.063]
[1738661510843,22.85173297,204.71,204.64,5.01189]
[1738661511965,36.2635815,204.71,204.63,0.063]
[1738661514793,41.1484815,204.71,204.63,0.063]
[1738661515473,13.41184853,204.7,204.63,0.063]
[1738661515674,36.2635815,204.7,204.63,0.063]
[1738661517001,41.1486815,204.7,204.63,0.063]
[1738661517991,64.00041447,204.7,204.63,0.063]
[1738661518298,64.25139447,204.7,204.63,0.063]
[1738661518499,38.84537657,204.69,204.63,0.063]
[1738661518884,37.8453815,204.69,204.63,0.063]
[1738661520616,81.1,204.71,204.63,0.063]
[1738661520617,103.95173297,204.71,204.63,0.063]
[1738661520784,27.73613297,204.74,204.64,0.12549]
[1738661520984,22.85173297,204.69,204.63,0.063]
[1738661521172,20.0,204.66,204.63,0.063]
[1738661521503,13.41184853,204.65,204.63,0.063]
[1738661522000,22.85173297,204.64,204.63,0.063]
[1738661522801,22.85173297,204.65,204.63,0.063]
[1738661523000,20.0,204.66,204.63,0.063]
[1738661523368,42.85173297,204.66,204.63,0.063]
[1738661523571,22.85173297,204.65,204.63,0.063]
[1738661524386,22.85173297,204.64,204.63,0.063]
[1738661524691,24.8862,204.66,204.63,0.063]
[1738661524692,22.85173297,204.65,204.63,0.063]
[1738661524995,22.85173297,204.64,204.63,0.063]
[1738661525696,22.85173297,204.69,204.63,0.063]
[1738661525875,31.00289979,204.81,204.63,0.31398]
[1738661525876,22.85173297,204.75,204.63,0.31398]
[1738661526208,0.03,204.71,204.63,13.72582853]
[1738661526704,0.03,204.71,204.64,17.1031]
[1738661526877,0.03,204.71,204.65,0.25098]
[1738661527477,0.03,204.71,204.67,13.66282853]
[1738661527684,0.03,204.81,204.71,0.25098]
[1738661528698,0.03,204.81,204.73,0.25098]
[1738661528999,0.03,204.81,204.75,0.25098]
[1738661529203,0.03,204.81,204.75,13.66282853]
[1738661530507,0.03,204.81,204.77,13.66282853]
[1738661530687,0.03,204.81,204.77,0.25098]
[1738661530894,0.03,204.81,204.78,4.8832]
[1738661531843,0.03,204.81,204.75,4.884]
[1738661532115,0.03,204.81,204.76,0.25098]
[1738661533010,0.03,204.81,204.75,0.25098]
[1738661533192,0.03,204.81,204.78,0.25098]
[1738661534816,0.03,204.81,204.74,9.5]
[1738661535016,22.85173297,204.78,204.68,4.8856]
[1738661535310,22.85173297,204.76,204.65,4.8863]
[1738661535519,22.85173297,204.73,204.64,8.5864]
[1738661535725,22.85173297,204.72,204.65,0.25098]
[1738661535905,22.85173297,204.75,204.65,0.25098]
[1738661536109,22.85173297,204.72,204.65,0.12549]
[1738661536298,22.85173297,204.73,204.65,0.12549]
[1738661536717,22.85173297,204.72,204.65,0.25098]
[1738661536922,27.73593297,204.74,204.65,5.13728]
[1738661537222,0.03,204.81,204.73,13.66282853]
[1738661537522,0.03,204.81,204.76,0.25098]
[1738661538729,0.03,204.81,204.76,4.8837]
[1738661539606,0.03,204.81,204.77,0.25098]
[1738661540028,0.03,204.81,204.72,4.8845]
[1738661540416,22.88173297,204.81,204.72,4.8845]
[1738661540619,22.85173297,204.75,204.66,4.8859]
[1738661541407,22.85173297,204.74,204.66,4.8859]
[1738661541728,27.73643297,204.72,204.65,57.96]
[1738661542102,27.73643297,204.72,204.65,0.25098]
[1738661542304,27.73643297,204.72,204.64,0.063]
[1738661543502,4.8847,204.72,204.64,0.063]
[1738661543709,22.85173297,204.68,204.64,0.063]
[1738661543936,22.85173297,204.69,204.64,0.063]
[1738661544307,22.85173297,204.7,204.64,0.063]
[1738661544708,22.85173297,204.68,204.64,0.063]
[1738661544912,22.85173297,204.67,204.64,0.063]
[1738661545441,22.85173297,204.65,204.64,0.063]
[1738661546134,22.85173297,204.66,204.64,0.063]
[1738661546439,22.85173297,204.69,204.64,0.063]
[1738661546736,22.85173297,204.68,204.64,0.063]
[1738661546939,22.85173297,204.67,204.64,0.063]
[1738661547234,42.85173297,204.68,204.64,0.063]
[1738661548231,20.0,204.67,204.64,0.063]
[1738661550124,47.73713297,204.69,204.64,0.063]
[1738661550424,22.85173297,204.76,204.64,20.31398]
[1738661550607,12.7023,204.78,204.64,50.31398]
[1738661550809,20.0,204.75,204.64,50.31398]
[1738661551013,11.2011,204.78,204.66,0.25098]
[1738661551241,4.883,204.8,204.68,0.25098]
[1738661551445,0.03,204.72,204.68,0.25098]
[1738661551611,0.03,204.72,204.65,13.41184853]
[1738661551818,0.03,204.72,204.68,13.66282853]
[1738661552443,0.03,204.72,204.71,5.13588]
[1738661552616,0.03,204.72,204.71,18.54772853]
[1738661553436,0.03,204.81,204.74,13.41184853]
[1738661553648,0.03,204.81,204.77,13.66282853]
[1738661554513,0.03,204.81,204.79,0.25098]
[1738661554911,0.03,204.93,204.81,13.66282853]
[1738661555336,0.03,204.93,204.84,13.66282853]
[1738661555742,0.03,204.93,204.9,0.25098]
[1738661556044,0.03,204.93,204.9,14.39467324]
[1738661556233,0.03,204.93,204.9,13.66282853]
[1738661556636,0.03,204.93,204.92,0.25098]
[1738661557915,0.03,204.93,204.89,24.8805]
[1738661558134,0.03,204.93,204.89,20.0]
[1738661558340,0.03,204.93,204.9,0.25098]
[1738661558930,0.03,204.93,204.9,13.66282853]
[1738661559127,0.03,204.93,204.81,4.8825]
[1738661559128,22.85173297,204.92,204.81,4.8825]
[1738661559521,0.03,204.93,204.82,30.12549]
[1738661559819,22.85173297,204.92,204.82,20.25098]
[1738661560026,0.03,204.93,204.83,30.0]
[1738661560228,0.03,204.93,204.84,13.66282853]
[1738661560946,27.76153297,204.93,204.84,0.25098]
[1738661561121,27.76153297,204.93,204.84,0.12549]
[1738661561536,27.76153297,204.93,204.85,0.12549]
[1738661561743,27.76153297,204.93,204.83,0.12549]
[1738661561941,27.76153297,204.93,204.83,0.25098]
[1738661562151,27.76153297,204.93,204.83,5.13298]
[1738661562446,42.85173297,204.9,204.81,4.8823]
[1738661562855,22.85173297,204.86,204.73,17.0951]
[1738661563156,22.85173297,204.88,204.76,13.66282853]
[1738661563950,22.85173297,204.88,204.77,4.8835]
[1738661564343,20.0,204.9,204.78,43.66282853]
[1738661565454,6.3843,204.93,204.82,13.66282853]
[1738661565950,6.3843,204.93,204.84,0.25098]
[1738661566149,0.03,204.93,204.84,43.66282853]
[1738661567860,0.03,204.93,204.9,0.25098]
[1738661568031,0.03,204.93,204.92,0.25098]
[1738661568537,0.03,204.93,204.92,13.66282853]
[1738661568929,0.03,204.93,204.92,43.66282853]
[1738661570229,0.03,204.93,204.92,48.54272853]
[1738661570443,0.03,204.93,204.92,5.13088]
[1738661571253,0.03,204.93,204.92,18.54272853]
[1738661571863,0.03,204.93,204.92,5.13088]
[1738661572052,0.03,204.93,204.85,42.2036]
[1738661572237,0.03,204.93,204.86,4.8813]
[1738661572754,0.03,204.93,204.87,0.25098]
[1738661573574,0.03,204.93,204.87,13.66282853]
[1738661573873,0.03,204.93,204.89,13.66282853]
[1738661574250,0.03,204.93,204.91,43.66282853]
[1738661574874,0.03,205.02,204.95,13.66282853]
[1738661575877,0.03,205.02,204.98,13.66282853]
[1738661576049,0.03,205.02,205.01,13.66282853]
[1738661576381,0.03,205.02,205.01,19.27205947]
[1738661576570,0.03,205.07,205.01,31.46649852]
[1738661576773,0.03,205.07,205.01,30.73512853]
[1738661577549,0.03,205.07,205.01,5.12878]
[1738661579253,0.03,205.07,204.99,4.878]
[1738661579578,0.03,205.07,205.0,0.25098]
[1738661580179,22.85173297,205.05,204.95,4.8792]
[1738661580684,22.85173297,205.06,204.96,0.25098]
[1738661581181,0.03,205.07,204.98,13.66282853]
[1738661582277,0.03,205.07,204.99,4.8782]
[1738661582459,0.03,205.07,204.91,30.0]
[1738661582460,22.85173297,205.03,204.91,30.0]
[1738661582662,22.85173297,205.02,204.92,4.8799]
[1738661582862,22.85173297,205.04,204.93,13.66282853]
[1738661583060,6.0119,205.06,204.97,13.66282853]
[1738661583264,0.03,205.07,204.97,14.39444874]
[1738661583567,0.03,205.07,204.99,13.66282853]
[1738661584149,0.03,205.07,205.0,4.878]
[1738661584354,0.03,205.07,205.01,13.66282853]
[1738661584784,0.03,205.07,205.01,0.25098]
[1738661584959,0.03,205.07,205.01,13.66282853]
[1738661585682,0.03,205.07,205.04,13.66282853]
[1738661585982,0.03,205.1,205.07,0.25098]
[1738661586148,0.03,205.1,205.09,18.53872853]
[1738661586472,0.03,205.1,205.09,49.26985651]
[1738661587877,0.03,205.1,205.09,5.85800798]
[1738661588074,0.03,205.1,205.09,5.12688]
[1738661589283,0.03,205.1,205.09,48.53872853]
[1738661590095,0.0001,205.1,205.09,49.53872853]
[1738661590278,0.0001,205.12,205.11,0.25098]
[1738661590471,0.0001,205.12,205.11,44.89379562]
[1738661590690,0.0001,205.16,205.15,13.66282853]
[1738661591293,0.0001,205.16,205.15,5.12538]
[1738661592571,0.0001,205.16,205.15,19.2682055]
[1738661593663,0.0001,205.16,205.15,28.7682055]
[1738661594296,0.063,205.26,205.19,0.25098]
[1738661594597,0.063,205.26,205.19,5.12448]
[1738661594889,0.063,205.26,205.19,0.25098]
[1738661596468,4.9348,205.26,205.19,0.25098]
[1738661596775,4.9348,205.26,205.18,24.8736]
[1738661596776,22.85173297,205.24,205.15,9.5]
[1738661596976,22.85173297,205.24,205.15,14.3744]
[1738661597479,22.85173297,205.24,205.16,0.25098]
[1738661597663,22.85173297,205.21,205.15,9.5]
[1738661597871,22.91473297,205.22,205.15,9.5]
[1738661598507,22.91473297,205.22,205.15,0.25098]
[1738661598508,27.78753297,205.22,205.15,0.25098]
[1738661598671,4.9358,205.22,205.15,0.25098]
[1738661598989,27.78753297,205.22,205.15,0.25098]
[1738661599305,0.063,205.22,205.17,13.66282853]
[1738661599483,0.063,205.22,205.19,13.66282853]
[1738661600199,0.063,205.22,205.19,43.66282853]
[1738661600584,0.063,205.22,205.21,25.12398]
[1738661600770,0.063,205.22,205.21,24.99849]
[1738661600971,0.063,205.22,205.21,38.53582853]
[1738661603974,0.063,205.26,205.22,13.66282853]
[1738661604180,0.003,205.29,205.28,33.66282853]
[1738661604383,6.4167,205.36,205.28,20.0]
[1738661604680,1.5472,205.36,205.29,0.25098]
[1738661605507,29.26843297,205.36,205.24,4.8723]
[1738661605809,1.5472,205.36,205.27,13.66282853]
[1738661606612,6.4167,205.36,205.28,0.25098]
[1738661606784,6.4167,205.36,205.24,5.8723]
[1738661606981,6.4167,205.36,205.27,20.0]
[1738661607310,29.26843297,205.36,205.24,4.8723]
[1738661607609,29.26843297,205.36,205.27,0.25098]
[1738661607775,22.85173297,205.34,205.23,4.8725]
[1738661607975,22.85173297,205.33,205.23,4.8725]
[1738661608172,22.85173297,205.33,205.24,0.25098]
[1738661608997,13.7209,205.36,205.19,25.59524853]
[1738661608998,22.85173297,205.3,205.2,4.8732]
[1738661609193,22.85173297,205.3,205.2,24.8732]
[1738661609383,22.85173297,205.31,205.2,24.8732]
[1738661609583,22.85173297,205.31,205.21,0.25098]
[1738661609781,22.85173297,205.3,205.16,13.47484853]
[1738661609974,22.85173297,205.28,205.17,4.874]
[1738661610173,22.85173297,205.28,205.2,0.25098]
[1738661610889,29.27583297,205.26,205.16,0.063]
[1738661611300,22.85173297,205.25,205.17,0.25098]
[1738661611710,29.27583297,205.26,205.17,0.25098]
[1738661612014,6.4241,205.26,205.17,5.12478]
[1738661612184,29.27583297,205.26,205.17,5.12478]
[1738661612908,22.85173297,205.25,205.16,0.063]
[1738661613082,22.85173297,205.23,205.16,0.063]
[1738661613507,22.85173297,205.19,205.16,0.063]
[1738661613895,14.41184853,205.25,205.16,0.063]
[1738661613896,22.85173297,205.2,205.16,0.063]
[1738661614225,20.0,205.22,205.16,0.063]
[1738661614685,22.85173297,205.18,205.16,0.063]
[1738661614892,22.85173297,205.2,205.16,0.063]
[1738661615093,13.41184853,205.25,205.16,0.063]
[1738661615094,4.8721,205.25,205.16,0.063]
[1738661615293,1.5523,205.26,205.16,0.063]
[1738661615494,1.5523,205.26,205.16,0.31398]
[1738661615788,1.5523,205.26,205.16,13.72582853]
[1738661616315,0.03,205.28,205.2,13.66282853]
[1738661616684,0.03,205.28,205.22,20.0]
[1738661616921,0.03,205.28,205.16,30.063]
[1738661617126,22.85173297,205.27,205.17,4.874]
[1738661617295,22.85173297,205.26,205.16,4.9371]
[1738661617610,22.85173297,205.27,205.17,0.25098]
[1738661618333,27.72353297,205.27,205.18,0.12549]
[1738661619035,27.72353297,205.27,205.17,0.12549]
[1738661619827,4.8718,205.27,205.17,0.12549]
[1738661620012,0.03,205.28,205.18,0.12549]
[1738661620334,0.03,205.28,205.2,0.25098]
[1738661621535,0.03,205.28,205.2,0.12549]
[1738661621714,22.85173297,205.26,205.16,0.063]
[1738661621918,22.85173297,205.24,205.16,4.9372]
[1738661622317,22.85173297,205.22,205.16,0.063]
[1738661623234,13.41184853,205.21,205.16,0.063]
[1738661623436,22.85173297,205.18,205.16,0.063]
[1738661623634,22.85173297,205.2,205.16,0.063]
[1738661624326,4.874,205.17,205.16,0.063]
[1738661625010,22.85173297,205.18,205.16,0.063]
[1738661625519,27.72543297,205.18,205.16,0.063]
[1738661626814,22.85173297,205.2,205.16,0.063]
[1738661627106,7.7867,205.21,205.16,0.063]
[1738661627533,30.63843297,205.21,205.16,0.063]
[1738661627739,22.85173297,205.19,205.16,0.063]
[1738661628039,4.8737,205.18,205.16,0.063]
[1738661628256,22.85173297,205.17,205.16,0.063]
[1738661628546,24.8737,205.18,205.16,0.063]
[1738661628547,4.8737,205.18,205.16,0.063]
[1738661629242,36.2635815,205.17,205.16,0.063]
[1738661629551,36.2635815,205.17,204.98,4.8785]
[1738661629552,20.0,205.13,204.98,4.8785]
[1738661629714,22.85173297,205.1,204.98,4.8785]
[1738661630054,22.85173297,205.1,205.02,0.12549]
[1738661630557,27.72743297,205.1,205.01,25.12878]
[1738661630914,22.85173297,205.12,205.01,25.12878]
[1738661631117,4.8749,205.13,205.01,25.12878]
[1738661631436,4.8732,205.2,205.06,13.66282853]
[1738661631945,7.7867,205.21,205.06,14.39403195]
[1738661632239,7.7867,205.21,205.1,5.12658]
[1738661632430,12.6597,205.21,205.1,5.12658]
[1738661632611,7.7867,205.21,205.1,5.12658]
[1738661633012,12.6598,205.21,205.1,5.12658]
[1738661633248,7.7867,205.21,205.12,0.12549]
[1738661633451,4.8723,205.25,205.12,0.25098]
[1738661633625,27.72403297,205.25,205.12,0.25098]
[1738661634232,12.555,205.26,205.17,0.12549]
[1738661634430,7.6832,205.26,205.17,0.25098]
[1738661634728,12.555,205.26,205.17,0.25098]
[1738661634927,0.03,205.28,205.17,0.25098]
[1738661635852,0.03,205.28,205.17,13.66282853]
[1738661636361,0.03,205.28,205.19,0.25098]
[1738661637124,0.03,205.28,205.19,13.66282853]
[1738661637351,0.03,205.28,205.23,0.25098]
[1738661638234,0.03,205.28,205.25,0.12549]
[1738661640457,0.03,205.28,205.2,4.8732]
[1738661640643,0.03,205.28,205.16,6.6504]
[1738661640849,0.03,205.28,205.17,13.66282853]
[1738661641733,0.03,205.28,205.17,18.53682853]
[1738661642770,0.03,205.28,205.17,5.12498]
[1738661643063,0.03,205.28,205.19,0.12549]
[1738661643246,0.03,205.28,205.22,0.25098]
[1738661644142,0.03,205.28,205.21,20.0]
[1738661644143,0.03,205.28,205.18,14.93314853]
[1738661644344,0.03,205.28,205.19,0.25098]
[1738661644662,0.03,205.28,205.2,4.8732]
[1738661645160,36.97956464,205.26,205.15,4.8744]
[1738661645351,36.97956464,205.26,205.16,20.25098]
[1738661645548,36.97956464,205.26,205.16,0.25098]
[1738661645851,36.97956464,205.26,205.16,20.25098]
[1738661646271,37.00956464,205.28,205.18,0.12549]
[1738661646442,4.8718,205.27,205.18,0.12549]
[1738661646629,37.00956464,205.28,205.18,0.25098]
[1738661646826,0.03,205.28,205.2,0.12549]
[1738661647058,0.03,205.28,205.2,0.25098]
[1738661647629,0.03,205.28,205.2,0.12549]
[1738661647827,0.03,205.28,205.2,20.0]
[1738661647828,4.9014,205.28,205.2,20.0]
[1738661648054,4.9014,205.28,205.17,4.874]
[1738661648374,0.03,205.28,205.18,0.25098]
[1738661648553,0.03,205.28,205.2,0.12549]
[1738661649668,0.03,205.28,205.22,0.12549]
[1738661649841,0.03,205.28,205.22,0.25098]
[1738661650042,0.03,205.28,205.22,13.66282853]
[1738661650771,0.03,205.28,205.22,0.25098]
[1738661651434,0.03,205.28,205.18,4.8737]
[1738661652057,0.03,205.28,205.21,33.66282853]
[1738661652356,0.03,205.28,205.21,63.66282853]
[1738661653963,0.03,205.28,205.25,0.12549]
[1738661654458,0.03,205.28,205.25,33.66282853]
[1738661654765,0.03,205.29,205.28,0.25098]
[1738661654963,0.03,205.29,205.28,13.66282853]
[1738661656048,0.03,205.29,205.28,18.53412853]
[1738661656434,0.03,205.37,205.28,18.53412853]
[1738661656652,0.03,205.37,205.32,0.25098]
[1738661658158,0.03,205.37,205.34,0.25098]
[1738661658535,0.03,205.37,205.34,0.12549]
[1738661658960,0.03,205.37,205.34,0.25098]
[1738661660259,0.03,205.37,205.34,13.66282853]
[1738661660565,0.03,205.37,205.36,33.66282853]
[1738661660737,0.0001,205.37,205.36,33.66282853]
[1738661663167,0.0001,205.37,205.36,38.53222853]
[1738661663383,0.0001,205.37,205.36,39.26240734]
[1738661663585,0.0001,205.37,205.36,38.53222853]
[1738661665368,0.0001,205.37,205.36,25.12038]
[1738661665567,0.0001,205.37,205.36,5.12038]
[1738661666458,0.0001,205.37,205.36,25.12038]
[1738661666658,0.0001,205.37,205.36,0.12549]
[1738661667586,0.0001,205.37,205.36,4.99489]
[1738661667791,0.0001,205.37,205.36,5.12038]
[1738661668484,0.0001,205.37,205.36,0.12549]
[1738661669663,0.0001,205.37,205.32,4.8702]
[1738661669984,0.0001,205.37,205.31,20.0]
[1738661670298,28.90267544,205.37,205.28,4.9343]
[1738661670500,28.90267544,205.37,205.28,0.063]
[1738661670782,28.90267544,205.37,205.28,0.31398]
[1738661670988,22.72547544,205.36,205.28,0.18849]
[1738661671194,22.72547544,205.35,205.28,0.063]
[1738661671393,6.1772,205.37,205.28,0.063]
[1738661671394,22.72547544,205.34,205.28,0.063]
[1738661671768,22.72547544,205.33,205.28,0.063]
[1738661672888,4.8694,205.36,205.28,0.063]
[1738661673071,6.1772,205.37,205.28,0.063]
[1738661673272,0.0001,205.37,205.31,0.12549]
[1738661673466,0.0001,205.37,205.31,0.25098]
[1738661673672,0.0001,205.37,205.33,0.12549]
[1738661673993,0.0001,205.37,205.33,13.66282853]
[1738661674687,0.0001,205.37,205.33,0.25098]
[1738661675388,0.0001,205.37,205.36,0.12549]
[1738661676295,0.0001,205.37,205.35,25.12068]
[1738661677366,0.0001,205.37,205.3,33.68]
[1738661677570,0.0001,205.37,205.31,4.8706]
[1738661678503,0.0001,205.37,205.34,0.12549]
[1738661679122,0.0001,205.37,205.34,0.25098]
[1738661680685,0.0001,205.37,205.36,0.12549]
[1738661682028,0.0001,205.37,205.34,4.8699]
[1738661682591,0.0001,205.37,205.35,0.25098]
[1738661684320,0.0001,205.37,205.36,0.25098]
[1738661687216,0.0001,205.37,205.34,18.53272853]
[1738661688218,0.0001,205.37,205.36,33.66282853]
[1738661690823,0.0001,205.37,205.36,38.53222853]
[1738661693910,0.0001,205.37,205.36,68.53222853]
[1738661694239,0.03,205.43,205.41,0.25098]
[1738661694744,81.1,205.54,205.41,0.25098]
[1738661694745,7.6437,205.53,205.43,0.25098]
[1738661694932,7.6437,205.53,205.48,0.25098]
[1738661695744,7.6437,205.53,205.48,20.25098]
[1738661696340,7.6437,205.53,205.48,25.11758]
[1738661697528,0.03,205.58,205.48,25.11758]
[1738661698028,22.7192544,205.58,205.48,25.11758]
[1738661699544,18.27634853,205.57,205.43,4.8678]
[1738661699838,22.6892544,205.53,205.44,0.25098]
[1738661700320,18.27634853,205.57,205.44,0.25098]
[1738661700321,27.5537544,205.57,205.44,13.66282853]
[1738661700643,0.03,205.58,205.48,13.66282853]
[1738661701455,0.03,205.58,205.48,20.25098]
[1738661701649,22.7192544,205.58,205.48,20.12549]
[1738661702158,13.44184853,205.58,205.48,24.99209]
[1738661702359,0.03,205.58,205.48,25.11758]
[1738661702879,0.03,205.58,205.48,39.25925425]
[1738661703241,0.03,205.58,205.49,13.66282853]
[1738661703465,0.03,205.58,205.49,20.25098]
[1738661703638,0.03,205.58,205.49,25.11738]
[1738661704659,0.03,205.58,205.49,38.52922853]
[1738661704839,0.0001,205.5,205.49,38.52922853]
[1738661705040,0.03,205.58,205.54,0.25098]
[1738661705444,0.03,205.58,205.54,43.66282853]
[1738661705865,0.03,205.58,205.57,33.66282853]
[1738661706044,0.03,205.58,205.57,64.39224401]
[1738661706255,6.0219,205.67,205.6,30.0]
[1738661706453,6.0219,205.67,205.61,13.66282853]
[1738661706660,6.0219,205.67,205.63,0.25098]
[1738661707170,6.0219,205.67,205.63,0.12549]
[1738661707371,6.0219,205.67,205.58,4.8641]
[1738661707557,10.8841,205.67,205.58,4.8641]
[1738661707871,6.0219,205.67,205.59,13.66282853]
[1738661708237,6.0219,205.67,205.61,0.25098]
[1738661708751,6.0219,205.67,205.63,0.12549]
[1738661709349,6.0219,205.67,205.63,0.25098]
[1738661709850,6.0219,205.67,205.57,50.0]
[1738661710049,6.0519,205.67,205.61,20.25098]
[1738661710677,10.914,205.67,205.58,4.8642]
[1738661710973,10.914,205.67,205.59,0.25098]
[1738661711173,6.0519,205.67,205.59,0.25098]
[1738661711354,6.0519,205.67,205.59,20.12549]
[1738661711559,33.6033544,205.67,205.56,4.8647]
[1738661711763,33.6033544,205.67,205.57,20.0]
[1738661712177,33.6033544,205.67,205.58,0.25098]
[1738661712471,1.5053,205.6,205.49,3.68]
[1738661712674,6.2452,205.59,205.49,8.5463]
[1738661712859,4.8642,205.58,205.51,20.0]
[1738661713059,6.2452,205.59,205.5,0.25098]
[1738661713264,6.2452,205.59,205.5,13.66282853]
[1738661713455,22.6892544,205.58,205.5,0.25098]
[1738661713661,11.1092,205.59,205.48,57.803]
[1738661713662,22.6892544,205.56,205.48,57.803]
[1738661713855,22.6892544,205.54,205.48,0.063]
[1738661714165,6.1653,205.51,205.48,0.063]
[1738661715344,1.5778,205.53,205.49,0.12549]
[1738661715571,6.1952,205.56,205.51,0.25098]
[1738661716391,6.5159,205.61,205.51,43.66282853]
[1738661717279,6.5159,205.61,205.52,4.8657]
[1738661717460,6.5159,205.61,205.53,13.66282853]
[1738661718652,6.5159,205.61,205.55,0.12549]
[1738661718876,1.6622,205.63,205.55,43.66282853]
[1738661719086,6.4096,205.66,205.59,13.66282853]
[1738661719388,0.03,205.67,205.59,13.66282853]
[1738661720553,0.03,205.67,205.59,0.25098]
[1738661720879,0.03,205.67,205.59,5.11498]
[1738661723179,22.7192544,205.67,205.55,30.0]
[1738661723354,22.6892544,205.63,205.54,4.8652]
[1738661723988,22.6892544,205.63,205.55,20.0]
[1738661724577,4.8633,205.62,205.56,0.25098]
[1738661724755,4.8633,205.62,205.56,0.12549]
[1738661725156,22.6892544,205.61,205.55,0.12549]
[1738661725374,22.6892544,205.61,205.52,4.8655]
[1738661725375,22.6892544,205.61,205.53,0.25098]
[1738661725686,28.8249544,205.61,205.53,0.25098]
[1738661725890,28.8249544,205.61,205.53,0.12549]
[1738661726200,22.6892544,205.57,205.51,0.063]
[1738661726364,1.6258,205.59,205.52,0.25098]
[1738661726563,4.8642,205.58,205.52,0.12549]